[Event "Titled Tuesday Blitz February 14 Early 2023"]
[White "Sanchez, Robert"]
[Black "Afanasieva, Alexandra"]
[WhiteFideId "2034360"]
[BlackFideId "34126926"]
[WhiteElo "1966"]
[BlackElo "1857"]
[Result "1-0"]
[Round "03"]
[TimeControl "180+2"]
[Date "2023.02.15"]
[WhiteClock "0:00:06"]
[BlackClock "0:00:01"]

1. e4 {[%clk 0:03:00]}  c5 {[%clk 0:02:58]} 2. Nf3 {[%clk 0:03:00]}  e6 {[%clk 0:02:59]} 3. d4 {[%clk 0:03:00]}  cxd4 {[%clk 0:03:00]} 4. Nxd4 {[%clk 0:03:01]}  Nf6 {[%clk 0:03:00]} 5. Nc3 {[%clk 0:03:01]}  Nc6 {[%clk 0:03:01]} 6. a3 {[%clk 0:02:59]}  d6 {[%clk 0:03:01]} 7. Be3 {[%clk 0:02:56]}  Be7 {[%clk 0:03:00]} 8. Be2 {[%clk 0:02:53]}  O-O {[%clk 0:03:00]} 9. O-O {[%clk 0:02:53]}  Qc7 {[%clk 0:03:00]} 10. Nb3 {[%clk 0:02:46]}  a6 {[%clk 0:02:53]} 11. f4 {[%clk 0:02:46]}  b5 {[%clk 0:02:51]} 12. Bf3 {[%clk 0:02:46]}  Bb7 {[%clk 0:02:50]} 13. Qe2 {[%clk 0:02:30]}  Rad8 {[%clk 0:02:39]} 14. Qf2 {[%clk 0:02:28]}  Qd7 {[%clk 0:02:33]} 15. Rad1 {[%clk 0:02:24]}  Qc8 {[%clk 0:02:28]} 16. g4 {[%clk 0:02:16]}  e5 {[%clk 0:02:11]} 17. f5 {[%clk 0:02:12]}  h6 {[%clk 0:01:50]} 18. h4 {[%clk 0:02:10]}  Nh7 {[%clk 0:01:49]} 19. Nd5 {[%clk 0:02:08]}  Rfe8 {[%clk 0:01:38]} 20. Qg3 {[%clk 0:02:07]}  Nd4 {[%clk 0:01:04]} 21. Nxe7+ {[%clk 0:01:56]}  Rxe7 {[%clk 0:01:05]} 22. Nxd4 {[%clk 0:01:56]}  exd4 {[%clk 0:01:03]} 23. Bxd4 {[%clk 0:01:57]}  Bxe4 {[%clk 0:00:30]} 24. Bc3 {[%clk 0:01:37]}  Qc5+ {[%clk 0:00:25]} 25. Rf2 {[%clk 0:01:07]}  Bxf3 {[%clk 0:00:20]} 26. Qxf3 {[%clk 0:01:07]}  Re3 {[%clk 0:00:20]} 27. Bd4 {[%clk 0:00:51]}  Rxf3 {[%clk 0:00:17]} 28. Bxc5 {[%clk 0:00:52]}  Rg3+ {[%clk 0:00:15]} 29. Rg2 {[%clk 0:00:46]}  Rxg2+ {[%clk 0:00:11]} 30. Kxg2 {[%clk 0:00:47]}  d5 {[%clk 0:00:12]} 31. Bd4 {[%clk 0:00:44]}  Nf8 {[%clk 0:00:10]} 32. Re1 {[%clk 0:00:41]}  Rc8 {[%clk 0:00:10]} 33. c3 {[%clk 0:00:41]}  Nd7 {[%clk 0:00:10]} 34. g5 {[%clk 0:00:33]}  Nc5 {[%clk 0:00:09]} 35. gxh6 {[%clk 0:00:32]}  gxh6 {[%clk 0:00:10]} 36. Kf3 {[%clk 0:00:31]}  Ne4 {[%clk 0:00:03]} 37. Rg1+ {[%clk 0:00:29]}  Kf8 {[%clk 0:00:04]} 38. Bg7+ {[%clk 0:00:26]}  Ke7 {[%clk 0:00:04]} 39. Bxh6 {[%clk 0:00:26]}  Rh8 {[%clk 0:00:04]} 40. Bg5+ {[%clk 0:00:23]}  f6 {[%clk 0:00:04]} 41. Bf4 {[%clk 0:00:21]}  Rxh4 {[%clk 0:00:02]} 42. Rg7+ {[%clk 0:00:21]}  Ke8 {[%clk 0:00:03]} 43. Ra7 {[%clk 0:00:19]}  Rh3+ {[%clk 0:00:03]} 44. Kg2 {[%clk 0:00:19]}  Rd3 {[%clk 0:00:03]} 45. Rxa6 {[%clk 0:00:18]}  d4 {[%clk 0:00:03]} 46. cxd4 {[%clk 0:00:18]}  Rxd4 {[%clk 0:00:04]} 47. Rb6 {[%clk 0:00:16]}  Rc4 {[%clk 0:00:02]} 48. Rxb5 {[%clk 0:00:13]}  Rc2+ {[%clk 0:00:02]} 49. Kh3 {[%clk 0:00:13]}  Nf2+ {[%clk 0:00:02]} 50. Kg3 {[%clk 0:00:12]}  Nd3 {[%clk 0:00:03]} 51. Bd6 {[%clk 0:00:09]}  Nxb2 {[%clk 0:00:02]} 52. Kh4 {[%clk 0:00:07]}  Kf7 {[%clk 0:00:02]} 53. Bb4 {[%clk 0:00:07]}  Rc4+ {[%clk 0:00:03]} 54. Kh5 {[%clk 0:00:06]}  Nd3 {[%clk 0:00:03]} 55. Rb7+ {[%clk 0:00:06]}  Kg8 {[%clk 0:00:03]} 56. Kg6 {[%clk 0:00:07]}  Nf4+ {[%clk 0:00:02]} 57. Kxf6 {[%clk 0:00:07]}  Nd5+ {[%clk 0:00:01]} 58. Kg5 {[%clk 0:00:06]} 1-0


[Site "https://www.chess.com"]

[Event "Titled Tuesday Blitz February 14 Early 2023"]
[White "Gonzalez, Francisco Silva"]
[Black "Kubatko, Ivan"]
[WhiteFideId "1512285"]
[BlackFideId "24111473"]
[WhiteElo "2021"]
[BlackElo "2257"]
[Result "1-0"]
[Round "03"]
[TimeControl "180+2"]
[Date "2023.02.15"]
[WhiteClock "0:01:38"]
[BlackClock "0:00:01"]

1. d4 {[%clk 0:03:00]}  d5 {[%clk 0:02:58]} 2. c4 {[%clk 0:03:01]}  e6 {[%clk 0:02:56]} 3. Nc3 {[%clk 0:03:01]}  c5 {[%clk 0:02:52]} 4. cxd5 {[%clk 0:02:59]}  cxd4 {[%clk 0:02:52]} 5. Qa4+ {[%clk 0:02:59]}  Bd7 {[%clk 0:02:52]} 6. Qxd4 {[%clk 0:02:58]}  exd5 {[%clk 0:02:52]} 7. Qxd5 {[%clk 0:02:57]}  Nc6 {[%clk 0:02:51]} 8. Nf3 {[%clk 0:02:48]}  Nf6 {[%clk 0:02:51]} 9. Qb3 {[%clk 0:02:46]}  Be6 {[%clk 0:02:35]} 10. Qc2 {[%clk 0:02:45]}  Nb4 {[%clk 0:02:25]} 11. Qb1 {[%clk 0:02:45]}  Bc5 {[%clk 0:02:02]} 12. e3 {[%clk 0:02:41]}  O-O {[%clk 0:01:48]} 13. a3 {[%clk 0:02:39]}  Nbd5 {[%clk 0:01:47]} 14. Bd2 {[%clk 0:02:36]}  Bg4 {[%clk 0:01:23]} 15. Be2 {[%clk 0:02:32]}  Nxc3 {[%clk 0:01:18]} 16. Bxc3 {[%clk 0:02:30]}  Nd5 {[%clk 0:01:19]} 17. Qd3 {[%clk 0:02:10]}  Nxc3 {[%clk 0:01:06]} 18. Qxc3 {[%clk 0:02:07]}  Rc8 {[%clk 0:01:01]} 19. O-O {[%clk 0:02:06]}  Qb6 {[%clk 0:00:53]} 20. b4 {[%clk 0:02:05]}  Be7 {[%clk 0:00:43]} 21. Qd4 {[%clk 0:02:03]}  Qxd4 {[%clk 0:00:20]} 22. Nxd4 {[%clk 0:02:02]}  Bxe2 {[%clk 0:00:17]} 23. Nxe2 {[%clk 0:02:02]}  Bf6 {[%clk 0:00:11]} 24. Rad1 {[%clk 0:01:59]}  Rc2 {[%clk 0:00:09]} 25. Nf4 {[%clk 0:01:58]}  Ra2 {[%clk 0:00:08]} 26. Rd7 {[%clk 0:01:57]}  b6 {[%clk 0:00:06]} 27. Rd3 {[%clk 0:01:53]}  Rc8 {[%clk 0:00:05]} 28. Rfd1 {[%clk 0:01:52]}  g6 {[%clk 0:00:03]} 29. g3 {[%clk 0:01:48]}  Rcc2 {[%clk 0:00:03]} 30. Nh3 {[%clk 0:01:48]}  Kg7 {[%clk 0:00:02]} 31. Rd7 {[%clk 0:01:46]}  Rxa3 {[%clk 0:00:01]} 32. Rb7 {[%clk 0:01:43]}  a5 {[%clk 0:00:01]} 33. Rdd7 {[%clk 0:01:39]}  axb4 {[%clk 0:00:01]} 34. Rxf7+ {[%clk 0:01:39]}  Kh6 {[%clk 0:00:01]} 35. Rxh7# {[%clk 0:01:38]} 1-0


[Site "https://www.chess.com"]

[Event "Titled Tuesday Blitz February 14 Early 2023"]
[White "Zherebtsova, Alexandra"]
[Black "Ciuffoletti, Paolo"]
[WhiteFideId "24129518"]
[BlackFideId "807630"]
[WhiteElo "2155"]
[BlackElo "2106"]
[Result "1-0"]
[Round "03"]
[TimeControl "180+2"]
[Date "2023.02.15"]
[WhiteClock "0:01:19"]
[BlackClock "0:00:10"]

1. d4 {[%clk 0:03:00]}  d5 {[%clk 0:02:59]} 2. Nf3 {[%clk 0:03:01]}  Nf6 {[%clk 0:02:58]} 3. c4 {[%clk 0:02:59]}  c6 {[%clk 0:02:58]} 4. Nbd2 {[%clk 0:02:58]}  g6 {[%clk 0:02:52]} 5. e3 {[%clk 0:02:57]}  Bg7 {[%clk 0:02:52]} 6. Bd3 {[%clk 0:02:58]}  O-O {[%clk 0:02:51]} 7. O-O {[%clk 0:02:58]}  Bg4 {[%clk 0:02:39]} 8. h3 {[%clk 0:02:55]}  Bxf3 {[%clk 0:02:38]} 9. Nxf3 {[%clk 0:02:56]}  Nbd7 {[%clk 0:02:34]} 10. b3 {[%clk 0:02:55]}  Re8 {[%clk 0:02:31]} 11. Bb2 {[%clk 0:02:55]}  Ne4 {[%clk 0:02:30]} 12. Qc2 {[%clk 0:02:54]}  f5 {[%clk 0:02:26]} 13. Rac1 {[%clk 0:02:48]}  e6 {[%clk 0:02:19]} 14. b4 {[%clk 0:02:47]}  Qe7 {[%clk 0:02:03]} 15. Qb3 {[%clk 0:02:42]}  b6 {[%clk 0:01:53]} 16. a4 {[%clk 0:02:37]}  h6 {[%clk 0:01:48]} 17. Ba3 {[%clk 0:02:24]}  Qf7 {[%clk 0:01:43]} 18. b5 {[%clk 0:02:21]}  cxb5 {[%clk 0:01:32]} 19. axb5 {[%clk 0:02:16]}  dxc4 {[%clk 0:01:19]} 20. Bxc4 {[%clk 0:02:14]}  Ndf6 {[%clk 0:01:16]} 21. Ne5 {[%clk 0:02:08]}  Qb7 {[%clk 0:01:01]} 22. Bxe6+ {[%clk 0:02:06]}  Kh7 {[%clk 0:01:01]} 23. Rfd1 {[%clk 0:02:05]}  Rxe6 {[%clk 0:00:45]} 24. Qxe6 {[%clk 0:02:04]}  Nd5 {[%clk 0:00:41]} 25. Qxg6+ {[%clk 0:01:54]}  Kg8 {[%clk 0:00:36]} 26. Qxf5 {[%clk 0:01:48]}  Nec3 {[%clk 0:00:33]} 27. Re1 {[%clk 0:01:29]}  Qc8 {[%clk 0:00:27]} 28. Qxc8+ {[%clk 0:01:22]}  Rxc8 {[%clk 0:00:27]} 29. Bb2 {[%clk 0:01:23]}  Rc7 {[%clk 0:00:17]} 30. e4 {[%clk 0:01:21]}  Bxe5 {[%clk 0:00:10]} 31. dxe5 {[%clk 0:01:19]} 1-0


[Site "https://www.chess.com"]

[Event "Titled Tuesday Blitz February 14 Early 2023"]
[White "Kuchava, Ana"]
[Black "Begunov, Konstantin"]
[WhiteFideId "13605348"]
[BlackFideId "4118510"]
[WhiteElo "2101"]
[BlackElo "2325"]
[Result "0-1"]
[Round "03"]
[TimeControl "180+2"]
[Date "2023.02.15"]
[WhiteClock "0:00:46"]
[BlackClock "0:02:02"]

1. d4 {[%clk 0:03:00]}  d5 {[%clk 0:02:59]} 2. Nf3 {[%clk 0:03:00]}  c6 {[%clk 0:03:00]} 3. c4 {[%clk 0:02:56]}  Nf6 {[%clk 0:03:01]} 4. Qb3 {[%clk 0:02:54]}  e6 {[%clk 0:02:54]} 5. Bg5 {[%clk 0:02:52]}  Be7 {[%clk 0:02:54]} 6. e3 {[%clk 0:02:47]}  O-O {[%clk 0:02:54]} 7. Bd3 {[%clk 0:02:42]}  a6 {[%clk 0:02:46]} 8. O-O {[%clk 0:02:40]}  dxc4 {[%clk 0:02:46]} 9. Bxc4 {[%clk 0:02:41]}  b5 {[%clk 0:02:46]} 10. Bd3 {[%clk 0:02:39]}  Bb7 {[%clk 0:02:42]} 11. Nc3 {[%clk 0:02:34]}  c5 {[%clk 0:02:40]} 12. dxc5 {[%clk 0:02:28]}  Qxd3 {[%clk 0:02:34]} 13. Rad1 {[%clk 0:02:25]}  Qg6 {[%clk 0:02:24]} 14. h4 {[%clk 0:01:05]}  Bxf3 {[%clk 0:02:10]} 15. gxf3 {[%clk 0:01:03]}  h6 {[%clk 0:02:10]} 16. c6 {[%clk 0:00:46]}  Nxc6 {[%clk 0:02:02]} 0-1


[Site "https://www.chess.com"]

[Event "Titled Tuesday Blitz February 14 Early 2023"]
[White "Goltsev, Dmitry"]
[Black "Ramirez Vido, Robert Yorisan"]
[WhiteFideId "24176710"]
[BlackFideId "3513823"]
[WhiteElo "2269"]
[BlackElo "2015"]
[Result "1-0"]
[Round "03"]
[TimeControl "180+2"]
[Date "2023.02.15"]
[WhiteClock "0:02:45"]
[BlackClock "0:01:45"]

1. e4 {[%clk 0:03:00]}  c5 {[%clk 0:03:00]} 2. Nf3 {[%clk 0:03:01]}  Nc6 {[%clk 0:03:00]} 3. d4 {[%clk 0:03:01]}  cxd4 {[%clk 0:03:01]} 4. Nxd4 {[%clk 0:03:02]}  g6 {[%clk 0:03:01]} 5. Nxc6 {[%clk 0:02:59]}  bxc6 {[%clk 0:03:00]} 6. Qd4 {[%clk 0:02:59]}  Nf6 {[%clk 0:03:00]} 7. e5 {[%clk 0:03:00]}  Nd5 {[%clk 0:02:58]} 8. c4 {[%clk 0:03:00]}  Nc7 {[%clk 0:02:58]} 9. e6 {[%clk 0:02:58]}  f6 {[%clk 0:02:58]} 10. exd7+ {[%clk 0:02:57]}  Bxd7 {[%clk 0:02:56]} 11. Nc3 {[%clk 0:02:57]}  Bg7 {[%clk 0:02:55]} 12. Be3 {[%clk 0:02:57]}  e5 {[%clk 0:02:51]} 13. Qd6 {[%clk 0:02:54]}  Bf8 {[%clk 0:02:41]} 14. Qd2 {[%clk 0:02:53]}  Qe7 {[%clk 0:02:31]} 15. O-O-O {[%clk 0:02:49]}  Rb8 {[%clk 0:02:21]} 16. Bxa7 {[%clk 0:02:48]}  Rb7 {[%clk 0:02:18]} 17. Bc5 {[%clk 0:02:48]}  Qf7 {[%clk 0:02:10]} 18. Ne4 {[%clk 0:02:48]}  f5 {[%clk 0:01:45]} 19. Nf6+ {[%clk 0:02:45]} 1-0


[Site "https://www.chess.com"]

[Event "Titled Tuesday Blitz February 14 Early 2023"]
[White "Fries-Nielsen, Jens Ove"]
[Black "De Souza, Cristiano Gomes"]
[WhiteFideId "1400142"]
[BlackFideId "2151758"]
[WhiteElo "2377"]
[BlackElo "2018"]
[Result "1-0"]
[Round "03"]
[TimeControl "180+2"]
[Date "2023.02.15"]
[WhiteClock "0:01:27"]
[BlackClock "0:00:52"]

1. d4 {[%clk 0:03:00]}  Nf6 {[%clk 0:02:58]} 2. Bg5 {[%clk 0:02:59]}  g6 {[%clk 0:02:54]} 3. Bxf6 {[%clk 0:02:58]}  exf6 {[%clk 0:02:53]} 4. e3 {[%clk 0:02:58]}  Bg7 {[%clk 0:02:54]} 5. c4 {[%clk 0:02:59]}  O-O {[%clk 0:02:54]} 6. Nc3 {[%clk 0:02:59]}  f5 {[%clk 0:02:54]} 7. g3 {[%clk 0:02:59]}  d6 {[%clk 0:02:55]} 8. Bg2 {[%clk 0:02:59]}  Nd7 {[%clk 0:02:56]} 9. Nge2 {[%clk 0:02:59]}  Nf6 {[%clk 0:02:56]} 10. b4 {[%clk 0:02:58]}  a5 {[%clk 0:02:53]} 11. b5 {[%clk 0:02:58]}  Re8 {[%clk 0:02:51]} 12. O-O {[%clk 0:02:57]}  Ne4 {[%clk 0:02:50]} 13. Qc2 {[%clk 0:02:55]}  Nxc3 {[%clk 0:02:47]} 14. Nxc3 {[%clk 0:02:55]}  Rb8 {[%clk 0:02:40]} 15. Rfd1 {[%clk 0:02:52]}  Be6 {[%clk 0:02:35]} 16. Qd3 {[%clk 0:02:50]}  Qe7 {[%clk 0:02:31]} 17. Rac1 {[%clk 0:02:50]}  Red8 {[%clk 0:02:30]} 18. Nd5 {[%clk 0:02:48]}  Qd7 {[%clk 0:02:16]} 19. Nf4 {[%clk 0:02:46]}  Qe7 {[%clk 0:02:15]} 20. a4 {[%clk 0:02:45]}  h6 {[%clk 0:02:12]} 21. Qd2 {[%clk 0:02:40]}  b6 {[%clk 0:02:11]} 22. Bd5 {[%clk 0:02:36]}  Kh7 {[%clk 0:02:05]} 23. h4 {[%clk 0:02:34]}  Bf6 {[%clk 0:01:58]} 24. Kg2 {[%clk 0:02:34]}  Bc8 {[%clk 0:01:52]} 25. Rh1 {[%clk 0:02:34]}  h5 {[%clk 0:01:49]} 26. Qa2 {[%clk 0:02:32]}  Kg7 {[%clk 0:01:46]} 27. Rc2 {[%clk 0:02:29]}  Bb7 {[%clk 0:01:46]} 28. Bxb7 {[%clk 0:02:28]}  Rxb7 {[%clk 0:01:44]} 29. Nd5 {[%clk 0:02:28]}  Qe4+ {[%clk 0:01:44]} 30. f3 {[%clk 0:02:28]}  Qe6 {[%clk 0:01:43]} 31. Qb3 {[%clk 0:02:27]}  Re8 {[%clk 0:01:42]} 32. Qd3 {[%clk 0:02:23]}  Qd7 {[%clk 0:01:38]} 33. Nf4 {[%clk 0:02:11]}  Rbb8 {[%clk 0:01:37]} 34. Rd1 {[%clk 0:02:10]}  Rbd8 {[%clk 0:01:37]} 35. Nd5 {[%clk 0:02:10]}  Be7 {[%clk 0:01:34]} 36. Re2 {[%clk 0:02:10]}  Bf8 {[%clk 0:01:31]} 37. Rde1 {[%clk 0:02:10]}  Re6 {[%clk 0:01:30]} 38. Nf4 {[%clk 0:02:08]}  Ree8 {[%clk 0:01:29]} 39. Qc3 {[%clk 0:02:08]}  Be7 {[%clk 0:01:27]} 40. e4 {[%clk 0:02:06]}  fxe4 {[%clk 0:01:25]} 41. fxe4 {[%clk 0:02:06]}  Qg4 {[%clk 0:01:24]} 42. Rf2 {[%clk 0:02:01]}  Bf6 {[%clk 0:01:22]} 43. Nd5 {[%clk 0:01:57]}  Bxh4 {[%clk 0:01:21]} 44. Qf3 {[%clk 0:01:54]}  Qxf3+ {[%clk 0:01:20]} 45. Rxf3 {[%clk 0:01:53]}  Bg5 {[%clk 0:01:19]} 46. Nxc7 {[%clk 0:01:52]}  Re7 {[%clk 0:01:15]} 47. Nd5 {[%clk 0:01:52]}  Re6 {[%clk 0:01:11]} 48. Nxb6 {[%clk 0:01:51]}  Rde8 {[%clk 0:01:11]} 49. c5 {[%clk 0:01:43]}  dxc5 {[%clk 0:01:10]} 50. dxc5 {[%clk 0:01:43]}  Rxe4 {[%clk 0:01:11]} 51. Rxe4 {[%clk 0:01:43]}  Rxe4 {[%clk 0:01:11]} 52. c6 {[%clk 0:01:43]}  Re2+ {[%clk 0:01:06]} 53. Rf2 {[%clk 0:01:40]}  Re1 {[%clk 0:01:05]} 54. Nc4 {[%clk 0:01:35]}  Rc1 {[%clk 0:01:00]} 55. Nxa5 {[%clk 0:01:34]}  Be3 {[%clk 0:00:56]} 56. Re2 {[%clk 0:01:30]}  Rc3 {[%clk 0:00:53]} 57. Rxe3 {[%clk 0:01:28]}  Rxe3 {[%clk 0:00:52]} 58. c7 {[%clk 0:01:27]} 1-0


[Site "https://www.chess.com"]

[Event "Titled Tuesday Blitz February 14 Early 2023"]
[White "Tologon tegin, Semetei"]
[Black "Hartikainen, Jarmo"]
[WhiteFideId "13800574"]
[BlackFideId "503134"]
[WhiteElo "2372"]
[BlackElo "2108"]
[Result "1-0"]
[Round "03"]
[TimeControl "180+2"]
[Date "2023.02.15"]
[WhiteClock "0:01:34"]
[BlackClock "0:01:40"]

1. Nf3 {[%clk 0:02:58]}  Nf6 {[%clk 0:02:59]} 2. g3 {[%clk 0:02:53]}  g6 {[%clk 0:02:59]} 3. Bg2 {[%clk 0:02:54]}  Bg7 {[%clk 0:02:59]} 4. O-O {[%clk 0:02:54]}  O-O {[%clk 0:03:00]} 5. c4 {[%clk 0:02:54]}  c5 {[%clk 0:03:00]} 6. Nc3 {[%clk 0:02:49]}  Nc6 {[%clk 0:03:00]} 7. d4 {[%clk 0:02:48]}  cxd4 {[%clk 0:02:58]} 8. Nxd4 {[%clk 0:02:48]}  a6 {[%clk 0:02:51]} 9. c5 {[%clk 0:02:27]}  Qc7 {[%clk 0:02:46]} 10. Nb3 {[%clk 0:02:06]}  Rd8 {[%clk 0:02:32]} 11. Bf4 {[%clk 0:01:57]}  e5 {[%clk 0:02:31]} 12. Bg5 {[%clk 0:01:57]}  Ne7 {[%clk 0:01:40]} 13. Bxf6 {[%clk 0:01:34]}  Bxf6 {[%clk 0:01:40]} 14. Nd5 {[%clk 0:01:35]}  Bg7 {[%clk 0:01:40]} 15. Nxc7 {[%clk 0:01:34]} 1-0


[Site "https://www.chess.com"]

[Event "Titled Tuesday Blitz February 14 Early 2023"]
[White "Vifleemskaia, Svetlana"]
[Black "Saravana, Krishnan P."]
[WhiteFideId "4129490"]
[BlackFideId "5018382"]
[WhiteElo "1971"]
[BlackElo "2284"]
[Result "0-1"]
[Round "03"]
[TimeControl "180+2"]
[Date "2023.02.15"]
[WhiteClock "0:00:01"]
[BlackClock "0:00:50"]

1. d4 {[%clk 0:02:37]}  Nf6 {[%clk 0:02:55]} 2. c4 {[%clk 0:02:34]}  e6 {[%clk 0:02:55]} 3. Nc3 {[%clk 0:02:30]}  Bb4 {[%clk 0:02:54]} 4. e3 {[%clk 0:02:29]}  O-O {[%clk 0:02:53]} 5. Ne2 {[%clk 0:02:28]}  d5 {[%clk 0:02:48]} 6. a3 {[%clk 0:02:28]}  Bd6 {[%clk 0:02:46]} 7. c5 {[%clk 0:02:27]}  Be7 {[%clk 0:02:46]} 8. f4 {[%clk 0:02:28]}  b6 {[%clk 0:02:44]} 9. b4 {[%clk 0:02:22]}  a5 {[%clk 0:02:39]} 10. Bd2 {[%clk 0:02:22]}  bxc5 {[%clk 0:02:18]} 11. bxc5 {[%clk 0:02:20]}  Ba6 {[%clk 0:02:18]} 12. Qa4 {[%clk 0:02:11]}  Nbd7 {[%clk 0:02:09]} 13. Ng3 {[%clk 0:02:04]}  Bxf1 {[%clk 0:02:07]} 14. Rxf1 {[%clk 0:02:03]}  Qc8 {[%clk 0:02:08]} 15. Kf2 {[%clk 0:02:02]}  Ng4+ {[%clk 0:02:06]} 16. Kg1 {[%clk 0:02:01]}  f5 {[%clk 0:02:06]} 17. Rab1 {[%clk 0:01:49]}  Ngf6 {[%clk 0:02:03]} 18. Qc6 {[%clk 0:01:37]}  Ra6 {[%clk 0:02:02]} 19. Qb5 {[%clk 0:01:35]}  Ra7 {[%clk 0:01:52]} 20. Na4 {[%clk 0:01:27]}  Ne4 {[%clk 0:01:45]} 21. Nxe4 {[%clk 0:01:25]}  fxe4 {[%clk 0:01:44]} 22. Qc6 {[%clk 0:01:08]}  Nb8 {[%clk 0:01:43]} 23. Qb5 {[%clk 0:01:05]}  Bd8 {[%clk 0:01:32]} 24. c6 {[%clk 0:01:01]}  Be7 {[%clk 0:01:30]} 25. Rb3 {[%clk 0:00:37]}  Qe8 {[%clk 0:01:24]} 26. Rc1 {[%clk 0:00:27]}  Ra6 {[%clk 0:01:23]} 27. Bxa5 {[%clk 0:00:19]}  Rxc6 {[%clk 0:01:16]} 28. Rxc6 {[%clk 0:00:14]}  Nxc6 {[%clk 0:01:07]} 29. Bxc7 {[%clk 0:00:12]}  g5 {[%clk 0:00:58]} 30. Be5 {[%clk 0:00:10]}  Qh5 {[%clk 0:00:52]} 31. Rb1 {[%clk 0:00:05]}  Nxe5 {[%clk 0:00:50]} 32. fxe5 {[%clk 0:00:01]}  Qf7 {[%clk 0:00:50]} 0-1


[Site "https://www.chess.com"]

[Event "Titled Tuesday Blitz February 14 Early 2023"]
[White "Rose, Felix"]
[Black "Melian, Juan Sebastian"]
[WhiteFideId "5105722"]
[BlackFideId "3706575"]
[WhiteElo "2091"]
[BlackElo "2293"]
[Result "0-1"]
[Round "03"]
[TimeControl "180+2"]
[Date "2023.02.15"]
[WhiteClock "0:00:43"]
[BlackClock "0:00:05"]

1. d4 {[%clk 0:02:59]}  g6 {[%clk 0:02:59]} 2. e4 {[%clk 0:02:59]}  Bg7 {[%clk 0:02:59]} 3. Nf3 {[%clk 0:03:00]}  d6 {[%clk 0:02:59]} 4. Nc3 {[%clk 0:02:59]}  Nc6 {[%clk 0:02:59]} 5. h3 {[%clk 0:02:57]}  Nf6 {[%clk 0:02:59]} 6. Be3 {[%clk 0:02:57]}  O-O {[%clk 0:02:59]} 7. Be2 {[%clk 0:02:57]}  a6 {[%clk 0:02:58]} 8. a4 {[%clk 0:02:56]}  e5 {[%clk 0:02:50]} 9. d5 {[%clk 0:02:54]}  Ne7 {[%clk 0:02:49]} 10. Nd2 {[%clk 0:02:51]}  c6 {[%clk 0:02:49]} 11. Nc4 {[%clk 0:02:43]}  cxd5 {[%clk 0:02:16]} 12. exd5 {[%clk 0:02:23]}  Bf5 {[%clk 0:02:08]} 13. Nb6 {[%clk 0:02:19]}  Rb8 {[%clk 0:02:06]} 14. a5 {[%clk 0:02:17]}  Ne8 {[%clk 0:01:43]} 15. Qd2 {[%clk 0:02:07]}  Nc8 {[%clk 0:01:18]} 16. O-O {[%clk 0:01:51]}  Bd7 {[%clk 0:01:01]} 17. b4 {[%clk 0:01:22]}  f5 {[%clk 0:01:00]} 18. f4 {[%clk 0:01:21]}  exf4 {[%clk 0:00:56]} 19. Rxf4 {[%clk 0:01:16]}  Nf6 {[%clk 0:00:08]} 20. Nxc8 {[%clk 0:01:08]}  Rxc8 {[%clk 0:00:08]} 21. Ra3 {[%clk 0:00:59]}  Re8 {[%clk 0:00:08]} 22. Bb6 {[%clk 0:00:58]}  Qe7 {[%clk 0:00:09]} 23. Bf1 {[%clk 0:00:54]}  Bh6 {[%clk 0:00:09]} 24. Qf2 {[%clk 0:00:53]}  Bxf4 {[%clk 0:00:09]} 25. Qxf4 {[%clk 0:00:54]}  Qe5 {[%clk 0:00:10]} 26. Qh6 {[%clk 0:00:54]}  Rxc3 {[%clk 0:00:09]} 27. Rxc3 {[%clk 0:00:48]}  Qxc3 {[%clk 0:00:09]} 28. Qg5 {[%clk 0:00:48]}  Nxd5 {[%clk 0:00:09]} 29. Bf2 {[%clk 0:00:45]}  Ne3 {[%clk 0:00:08]} 30. Bd3 {[%clk 0:00:45]}  Nd5 {[%clk 0:00:06]} 31. b5 {[%clk 0:00:43]}  axb5 {[%clk 0:00:05]} 32. Bxb5 {[%clk 0:00:43]}  Bxb5 {[%clk 0:00:05]} 0-1


[Site "https://www.chess.com"]

[Event "Titled Tuesday Blitz February 14 Early 2023"]
[White "Bas Mas, Jose Joaquin"]
[Black "Prudnykova, Olga"]
[WhiteFideId "22219064"]
[BlackFideId "14121093"]
[WhiteElo "2197"]
[BlackElo "2268"]
[Result "1/2-1/2"]
[Round "03"]
[TimeControl "180+2"]
[Date "2023.02.15"]
[WhiteClock "0:00:26"]
[BlackClock "0:00:22"]

1. e4 {[%clk 0:03:00]}  c5 {[%clk 0:02:59]} 2. Nc3 {[%clk 0:03:00]}  a6 {[%clk 0:02:58]} 3. g3 {[%clk 0:03:00]}  b5 {[%clk 0:02:58]} 4. Bg2 {[%clk 0:03:00]}  Bb7 {[%clk 0:02:59]} 5. Nh3 {[%clk 0:03:00]}  e6 {[%clk 0:02:58]} 6. d3 {[%clk 0:02:59]}  Nc6 {[%clk 0:02:57]} 7. O-O {[%clk 0:02:59]}  Be7 {[%clk 0:02:56]} 8. f4 {[%clk 0:02:58]}  Nd4 {[%clk 0:02:47]} 9. Ne2 {[%clk 0:02:55]}  Nxe2+ {[%clk 0:02:45]} 10. Qxe2 {[%clk 0:02:56]}  Qc7 {[%clk 0:02:38]} 11. Nf2 {[%clk 0:02:55]}  Nf6 {[%clk 0:02:36]} 12. g4 {[%clk 0:02:53]}  h6 {[%clk 0:02:24]} 13. a4 {[%clk 0:02:50]}  b4 {[%clk 0:02:23]} 14. b3 {[%clk 0:02:49]}  O-O-O {[%clk 0:02:21]} 15. Bb2 {[%clk 0:02:40]}  d5 {[%clk 0:02:19]} 16. e5 {[%clk 0:02:39]}  Nd7 {[%clk 0:02:16]} 17. c3 {[%clk 0:02:37]}  Kb8 {[%clk 0:02:10]} 18. Rac1 {[%clk 0:02:27]}  Qb6 {[%clk 0:02:06]} 19. h3 {[%clk 0:02:18]}  g5 {[%clk 0:01:56]} 20. f5 {[%clk 0:02:14]}  h5 {[%clk 0:01:56]} 21. f6 {[%clk 0:02:11]}  Bf8 {[%clk 0:01:55]} 22. c4 {[%clk 0:02:06]}  d4 {[%clk 0:01:54]} 23. Rce1 {[%clk 0:01:53]}  Bxg2 {[%clk 0:01:46]} 24. Kxg2 {[%clk 0:01:53]}  hxg4 {[%clk 0:01:44]} 25. Nxg4 {[%clk 0:01:48]}  Bh6 {[%clk 0:01:34]} 26. Bc1 {[%clk 0:01:44]}  Rdg8 {[%clk 0:01:34]} 27. Qe4 {[%clk 0:01:37]}  Nf8 {[%clk 0:01:32]} 28. Bd2 {[%clk 0:01:30]}  Ng6 {[%clk 0:01:29]} 29. a5 {[%clk 0:01:28]}  Qb7 {[%clk 0:01:28]} 30. Qxb7+ {[%clk 0:01:25]}  Kxb7 {[%clk 0:01:29]} 31. Kh2 {[%clk 0:01:15]}  Nh4 {[%clk 0:01:24]} 32. Re4 {[%clk 0:01:13]}  Bf8 {[%clk 0:01:21]} 33. Kg3 {[%clk 0:01:01]}  Nf5+ {[%clk 0:01:18]} 34. Kg2 {[%clk 0:00:58]}  Nh4+ {[%clk 0:01:18]} 35. Kg1 {[%clk 0:00:54]}  Nf5 {[%clk 0:01:14]} 36. Rf3 {[%clk 0:00:54]}  Rh5 {[%clk 0:01:04]} 37. Nf2 {[%clk 0:00:48]}  Bh6 {[%clk 0:00:38]} 38. Rg4 {[%clk 0:00:47]}  Nh4 {[%clk 0:00:31]} 39. Rfg3 {[%clk 0:00:44]}  Ng6 {[%clk 0:00:31]} 40. Re4 {[%clk 0:00:36]}  Nh4 {[%clk 0:00:22]} 41. Ng4 {[%clk 0:00:33]}  Bf8 {[%clk 0:00:22]} 42. Kf2 {[%clk 0:00:27]}  Nf5 {[%clk 0:00:22]} 43. Rf3 {[%clk 0:00:27]}  Nh4 {[%clk 0:00:22]} 44. Rg3 {[%clk 0:00:26]}  Nf5 {[%clk 0:00:22]} 45. Rf3 {[%clk 0:00:25]}  Nh4 {[%clk 0:00:22]} 46. Rg3 {[%clk 0:00:26]} 1/2-1/2


[Site "https://www.chess.com"]